fUSD/lending_fUSD_20240825
["ID","MTS","AMOUNT","RATE_DAILY","PERIOD"]
[335869792,1724560365501,500.0,9.59e-05,2]
[335869793,1724560369434,800.0,8.22e-05,2]
[335869794,1724560371469,800.0,9.59e-05,2]
[335869795,1724560375871,1000.0,8.22e-05,2]
[335869796,1724560377460,1000.0,9.59e-05,2]
[335869798,1724560591762,424.8168,9.922e-05,2]
[335869800,1724560632151,304.02,8.219e-05,2]
[335869802,1724560661678,250.0,9.986e-05,2]
[335869803,1724560689538,1000.0,9.973e-05,2]
[335869805,1724560731670,5500.0,0.00025,60]
[335869807,1724560800089,2583.2377,9.919e-05,2]
[335869808,1724560878062,226.69,9.952e-05,2]
[335869809,1724560906423,200.0,9.949e-05,2]
[335869810,1724560953387,1357.87,9.986e-05,2]
[335869811,1724561131439,1099.39,9.925e-05,2]
[335869812,1724561144653,304.63,8.219e-05,2]
[335869813,1724561159032,250.0,9.932e-05,2]
[335869814,1724561188457,200.0,9.924e-05,2]
[335869815,1724561198572,187.36,9.924e-05,2]
[335869816,1724561226809,3089.97168583,0.00010009,2]
[335869818,1724561297860,2372.21,9.894e-05,2]
[335869824,1724561349535,1276.69480859,0.00010009,2]
[335869827,1724561364143,226.72,9.887e-05,2]
[335869829,1724561387484,155.0,0.00010009,2]
[335869830,1724561392066,183.1,9.93e-05,2]
[335869831,1724561393866,-290.64222833,0.00010011,2]
[335869832,1724561395470,-286.11,0.00010011,2]
[335869833,1724561396244,-269.44,0.00010011,2]
[335869834,1724561396668,-267.57,0.00010011,2]
[335869835,1724561397363,-266.74679859,0.00010011,2]
[335869836,1724561398187,-265.82,0.00010011,2]
[335869837,1724561399075,-255.6245,0.00010011,2]
[335869838,1724561400382,-241.73296123,0.00010011,2]
[335869839,1724561400474,300.0,0.0001001,2]
[335869840,1724561401355,-225.21,0.00010011,2]
[335869841,1724561401928,-214.496428,0.00010011,2]
[335869842,1724561402482,-182.65,0.00010011,2]
[335869843,1724561403086,-180.86892541,0.00010011,2]
[335869844,1724561403969,-153.75599787,0.00010011,2]
[335869845,1724561404479,-150.24,0.00010011,2]
[335869846,1724561405046,-150.0,0.00010011,2]
[335869847,1724561405437,-150.0,0.00010011,2]
[335869848,1724561405952,-150.0,0.00010011,2]
[335869849,1724561406372,-150.0,0.00010011,2]
[335869850,1724561407863,-150.0,0.00010011,2]
[335869851,1724561408370,-150.0,0.00010011,2]
[335869852,1724561409012,-150.0,0.00010011,2]
[335869853,1724561409757,-150.0,0.00010011,2]
[335869854,1724561412579,-150.0,0.00010011,2]
[335869855,1724561413141,-150.0,0.00010011,2]
[335869856,1724561414400,-150.0,0.00010011,2]
[335869857,1724561414847,-150.0,0.00010011,2]
[335869858,1724561415374,-150.0,0.00010011,2]
[335869859,1724561415785,1000.0,0.00025,60]
[335869860,1724561416184,-150.0,0.00010011,2]
[335869861,1724561417147,-150.0,0.00010011,2]
[335869862,1724561417541,-150.0,0.00010011,2]
[335869863,1724561417959,-150.0,0.00010011,2]
[335869864,1724561419515,-150.0,0.00010011,2]
[335869865,1724561420171,-150.0,0.00010011,2]
[335869866,1724561420553,-150.0,0.00010011,2]
[335869867,1724561420959,-150.0,0.00010011,2]
[335869868,1724561421682,-150.0,0.00010011,2]
[335869869,1724561422377,-150.0,0.00010011,2]
[335869870,1724561423091,-150.0,0.00010011,2]
[335869871,1724561423761,-150.0,0.00010011,2]
[335869872,1724561424558,-150.0,0.00010011,2]
[335869873,1724561425086,-150.0,0.00010011,2]
[335869874,1724561425760,-150.0,0.00010011,2]
[335869875,1724561426289,-150.0,0.00010011,2]
[335869876,1724561427658,-150.0,0.00010011,2]
[335869877,1724561428054,-150.0,0.00010011,2]
[335869878,1724561428478,-150.0,0.00010011,2]
[335869879,1724561428868,-150.0,0.00010011,2]
[335869880,1724561429561,-150.0,0.00010011,2]
[335869881,1724561429982,-150.0,0.00010011,2]
[335869882,1724561430645,-150.0,0.00010011,2]
[335869883,1724561431196,-150.0,0.00010011,2]
[335869884,1724561431936,-150.0,0.00010011,2]
[335869885,1724561432506,-150.0,0.00010011,2]
[335869886,1724561433017,-150.0,0.00010011,2]
[335869887,1724561433525,-150.0,0.00010011,2]
[335869888,1724561434221,-150.0,0.00010011,2]
[335869889,1724561435571,-150.0,0.00010011,2]
[335869890,1724561435986,-150.0,0.00010011,2]
[335869891,1724561436399,-150.0,0.00010011,2]
[335869892,1724561436791,-150.0,0.00010011,2]
[335869893,1724561437304,1000.0,8.22e-05,2]
[335869894,1724561438385,-34735.19500657,0.00010011,2]
[335869895,1724561438395,-318.59235998,0.00010026,2]
[335869896,1724561438405,-660.97560103,0.00010026,2]
[335869897,1724561438415,-172.2,0.00010045,2]
[335869898,1724561438424,-522.0,0.0001014,2]
[335869899,1724561438433,-223.08654922,0.00010471,2]
[335869900,1724561438442,-155.41013361,0.00010471,2]
[335869901,1724561438451,-304.63,0.00010472,2]
[335869902,1724561438460,-212.88474443,0.00010505,2]
[335869903,1724561438469,-459.38528762,0.00010505,2]
[335869904,1724561438478,-155.0,0.00010566,2]
[335869905,1724561438487,-155.0,0.00010566,2]
[335869906,1724561438497,-191.386007,0.00010573,2]
[335869907,1724561438506,-150.0,0.00010698,2]
[335869908,1724561438515,-13383.7,0.00010699,2]
[335869909,1724561438524,-386.76523522,0.00010699,2]
[335869910,1724561438533,-680.98,0.00010713,2]
[335869911,1724561438542,-24298.5,0.00010713,2]
[335869912,1724561438551,-150.0,0.000108,2]
[335869913,1724561438560,-531.62,0.000108,2]
[335869914,1724561438570,-150.0,0.000108,2]
[335869915,1724561438579,-426.95,0.000108,2]
[335869916,1724561438588,-426.95,0.000108,2]
[335869917,1724561438597,-150.83,0.000108,2]
[335869918,1724561438606,-535.78,0.000108,2]
[335869919,1724561438615,-425.8,0.000108,2]
[335869920,1724561438624,-531.62,0.000108,2]
[335869921,1724561438633,-531.62,0.000108,2]
[335869922,1724561438643,-528.76,0.000108,2]
[335869923,1724561438653,-1500.0,0.00010816,2]
[335869924,1724561438667,-275.70718727,0.00010852,2]
[335869925,1724561438675,-507.85865847,0.00010862,2]
[335869926,1724561438684,-209.05894527,0.00010881,2]
[335869927,1724561438693,-184.51861,0.0001089,2]
[335869928,1724561438703,-45705.9531,0.00010899,2]
[335869929,1724561438713,-9550.6013,0.00010899,2]
[335869930,1724561438722,-960.12211496,0.00010899,2]
[335869931,1724561438731,-960.12211493,0.00010899,2]
[335869932,1724561438741,-960.12211493,0.00010899,2]
[335869933,1724561438750,-297.94,0.00010899,2]
[335869934,1724561438759,-960.12211493,0.00010899,2]
[335869935,1724561438769,-960.12211493,0.00010899,2]
[335869936,1724561438778,-960.12211493,0.00010899,2]
[335869937,1724561438787,-960.12211493,0.00010899,2]
[335869938,1724561438796,-960.12211493,0.00010899,2]
[335869939,1724561438805,-960.12211493,0.00010899,2]
[335869940,1724561438814,-1969.38334884,0.000109,2]
[335869941,1724561438823,-215.3767,0.000109,2]
[335869942,1724561438832,-1000.0,0.000109,2]
[335869943,1724561438841,-175.47165857,0.000109,2]
[335869944,1724561438850,-2458.759,0.000109,2]
[335869945,1724561438859,-290.32,0.000109,2]
[335869946,1724561438869,-426.95,0.000109,2]
[335869947,1724561438878,-150.0,0.000109,2]
[335869948,1724561438887,-1689.95,0.000109,2]
[335869949,1724561438896,-531.62,0.000109,2]
[335869950,1724561438907,-426.95,0.000109,2]
[335869951,1724561438924,-151.0,0.000109,2]
[335869952,1724561438934,-213.22136781,0.000109,2]
[335869953,1724561438944,-216.12810539,0.000109,2]
[335869954,1724561438953,-350.60174226,0.000109,2]
[335869955,1724561438962,-568.55102721,0.000109,2]
[335869956,1724561438972,-960.12211493,0.000109,2]
[335869957,1724561438981,-150.55,0.00010959,2]
[335869958,1724561438992,-5278.7746,0.00010959,2]
[335869959,1724561439002,-150.0,0.00010959,2]
[335869960,1724561439011,-250.0,0.00010959,2]
[335869961,1724561439021,-169.94,0.00010959,2]
[335869962,1724561439030,-500.0,0.0001096,2]
[335869963,1724561439040,-151.0,0.0001096,2]
[335869964,1724561439049,-500.0,0.0001096,2]
[335869965,1724561439058,-800.0,0.0001096,2]
[335869966,1724561439068,-1000.0,0.0001096,2]
[335869967,1724561439077,-527.26495798,0.00010979,2]
[335869968,1724561439086,-200.0,0.0001099,2]
[335869969,1724561439095,-1750.5006195,0.00010997,2]
[335869970,1724561439104,-6613.7878664,0.00010997,2]
[335869971,1724561439113,-226.6112189,0.00010997,2]
[335869972,1724561439123,-876.5723475,0.00010997,2]
[335869973,1724561439132,-1086.788,0.00010998,2]
[335869974,1724561439141,-500.75566474,0.00010998,2]
[335869975,1724561439150,-524.27014431,0.00010998,2]
[335869976,1724561439159,-521.81240655,0.00010998,2]
[335869977,1724561439168,-524.76102815,0.00010998,2]
[335869978,1724561439177,-500.0,0.00010998,2]
[335869979,1724561439188,-173.64566479,0.00010999,2]
[335869980,1724561439198,-500.0,0.00010999,2]
[335869981,1724561439209,-500.0,0.00010999,2]
[335869982,1724561439219,-500.0,0.00010999,2]
[335869983,1724561439229,-500.0,0.00010999,2]
[335869984,1724561439239,-500.0,0.00010999,2]
[335869985,1724561439249,-500.0,0.00010999,2]
[335869986,1724561439258,-191.3,0.00010999,2]
[335869987,1724561439269,-500.0,0.00010999,2]
[335869988,1724561439279,-500.0,0.00010999,2]
[335869989,1724561439287,-500.0,0.00010999,2]
[335869990,1724561439297,-485.1,0.00010999,2]
[335869991,1724561439305,-500.0,0.00010999,2]
[335869992,1724561439315,-505.72339811,0.00010999,2]
[335869993,1724561439325,-500.0,0.00010999,2]
[335869994,1724561439336,-500.0,0.00010999,2]
[335869995,1724561439348,-316.63772154,0.00010999,2]
[335869996,1724561439357,-500.0,0.00010999,2]
[335869997,1724561439368,-500.0,0.00010999,2]
[335869998,1724561439379,-500.0,0.00010999,2]
[335869999,1724561439390,-632.24,0.00010999,2]
[335870000,1724561439402,-256.14758321,0.00010999,2]
[335870001,1724561439411,-500.0,0.00010999,2]
[335870002,1724561439420,-500.0,0.00010999,2]
[335870003,1724561439429,-500.0,0.00010999,2]
[335870004,1724561439439,-548.16198729,0.00010999,2]
[335870005,1724561439448,-500.0,0.00010999,2]
[335870006,1724561439458,-500.0,0.00010999,2]
[335870007,1724561439470,-226.2533567,0.00010999,2]
[335870008,1724561439482,-3496.97508975,0.00011,2]
[335870009,1724561439496,-359200.81069543,0.00011,2]
[335870010,1724561439672,-1117.92172209,0.00011,2]
[335870011,1724561440284,1000.0,9.59e-05,2]
[335870012,1724561440731,-415.70500001,0.0001096,2]
[335870013,1724561440744,-395.07499998,0.0001096,2]
[335870047,1724561446228,-419.641845,0.0001096,2]
[335870048,1724561446239,-151.0,0.0001096,2]
[335870049,1724561446249,-345.47242901,0.0001096,2]
[335870050,1724561462125,872.011,9.913e-05,2]
[335870051,1724561473429,150.29,8.6e-05,2]
[335870052,1724561483050,600.0,8.22e-05,2]
[335870053,1724561483174,516.33500289,8.22e-05,2]
[335870054,1724561483349,500.0,8.22e-05,2]
[335870055,1724561484740,600.0,9.59e-05,2]
[335870056,1724561486650,800.0,8.22e-05,2]
[335870057,1724561488252,800.0,9.59e-05,2]
[335870058,1724561499914,1050.0,9.913e-05,2]
[335870059,1724561515467,461.11079604,9.913e-05,2]
[335870060,1724561521210,268.98956822,9.913e-05,2]
[335870062,1724561536614,268.98956822,9.913e-05,2]
[335870064,1724561597204,-150.0,0.00010222,2]
[335870065,1724561597226,-217.628712,0.00010365,2]
[335870066,1724561597246,-1045.57,0.00010418,2]
[335870067,1724561597266,-4609.86840695,0.000108,2]
[335870068,1724561597285,-417.49,0.0001086,2]
[335870069,1724561597306,-2739.0171,0.00010897,2]
[335870070,1724561597325,-300.0,0.00010899,2]
[335870071,1724561597345,-1288.04921245,0.000109,2]
[335870072,1724561597365,-7125.413,0.000109,2]
[335870073,1724561597385,-537.12442825,0.00010949,2]
[335870074,1724561597404,-74.16941599,0.0001096,2]
[335870075,1724561597423,-500.0,0.0001096,2]
[335870076,1724561597442,-189.22000001,0.0001096,2]
[335870077,1724561597461,-600.0,0.0001096,2]
[335870078,1724561597481,-800.0,0.0001096,2]
[335870079,1724561597502,-3710.3959688,0.00010997,2]
[335870080,1724561597522,-12411.9290375,0.00010997,2]
[335870081,1724561597541,-1762.05906666,0.00010997,2]
[335870082,1724561597563,-642.16,0.00010998,2]
[335870083,1724561597584,-499.99,0.00010998,2]
[335870084,1724561597606,-150.0,0.00010999,2]
[335870085,1724561597629,-500.0,0.00010999,2]
[335870086,1724561597650,-500.0,0.00010999,2]
[335870087,1724561597670,-500.0,0.00010999,2]
[335870088,1724561597690,-500.0,0.00010999,2]
[335870089,1724561597715,-500.0,0.00010999,2]
[335870090,1724561597738,-500.0,0.00010999,2]
[335870091,1724561597760,-608.44809444,0.00010999,2]
[335870092,1724561597785,-500.0,0.00010999,2]
[335870093,1724561597808,-282.82509474,0.00010999,2]
[335870094,1724561597832,-500.0,0.00010999,2]
[335870095,1724561597854,-500.0,0.00010999,2]
[335870096,1724561597875,-545.05909877,0.00010999,2]
[335870097,1724561597896,-500.0,0.00010999,2]
[335870098,1724561597916,-500.0,0.00010999,2]
[335870099,1724561597937,-518.64461193,0.00010999,2]
[335870100,1724561597961,-500.0,0.00010999,2]
[335870101,1724561597980,-500.0,0.00010999,2]
[335870102,1724561598000,-500.0,0.00010999,2]
[335870103,1724561598023,-315.77248689,0.00010999,2]
[335870104,1724561598042,-643.59809265,0.00010999,2]
[335870105,1724561598064,-500.0,0.00010999,2]
[335870106,1724561598085,-500.0,0.00010999,2]
[335870107,1724561598106,-500.0,0.00010999,2]
[335870108,1724561598127,-500.0,0.00010999,2]
[335870109,1724561598147,-500.0,0.00010999,2]
[335870110,1724561598169,-500.0,0.00010999,2]
[335870111,1724561598190,-500.0,0.00010999,2]
[335870112,1724561598210,-500.0,0.00010999,2]
[335870113,1724561598231,-500.0,0.00010999,2]
[335870114,1724561598255,-500.0,0.00010999,2]
[335870115,1724561598277,-500.0,0.00010999,2]
[335870116,1724561598298,-500.0,0.00010999,2]
[335870117,1724561598319,-500.0,0.00010999,2]
[335870118,1724561598342,-500.0,0.00010999,2]
[335870119,1724561598364,-613.32,0.00010999,2]
[335870120,1724561598386,-1748.48754488,0.00011,2]
[335870121,1724561598408,-15626625.6846696,0.00011,2]
[335870122,1724561598429,-1856090.07595749,0.00011,2]
[335870123,1724561629236,800.0,8.22e-05,2]
[335870124,1724561630862,800.0,9.59e-05,2]
[335870125,1724561647270,500.0,8.22e-05,2]
[335870126,1724561663100,500.0,8.22e-05,2]
[335870127,1724561671400,500.0,8.22e-05,2]
[335870128,1724561671969,600.0,8.22e-05,2]
[335870129,1724561673130,500.0,9.59e-05,2]
[335870130,1724561673640,600.0,9.59e-05,2]
[335870131,1724561709990,374.94,8.219e-05,2]
[335870132,1724561765184,840.0,9.965e-05,2]
[335870133,1724561768889,150.0,9.965e-05,2]
[335870134,1724561800207,531.64175909,9.962e-05,2]
[335870135,1724561801880,172.62,9.965e-05,2]
[335870136,1724561928451,20000.0,0.0001,2]
[335870137,1724561936587,3641.13410836,0.0001,2]
[335870138,1724561943046,151.0,7.95e-05,2]
[335870139,1724562006447,500.0,0.0001,2]
[335870140,1724562036231,639.57386547,0.0001,2]
[335870141,1724562073617,156.42,7.193e-05,2]
[335870144,1724562097123,3000.0,0.0001,2]
[335870145,1724562119137,218.64,9.926e-05,2]
[335870146,1724562195212,410.99,9.927e-05,2]
[335870147,1724562218164,428.61,0.00010003,2]
[335870148,1724562228027,369.7,8.219e-05,2]
[335870149,1724562300734,328.0,9.918e-05,2]
[335870150,1724562408251,200.71106995,9.868e-05,2]
[335870151,1724562434239,151.0,7.919e-05,2]
[335870152,1724562449527,26178.02925167,0.00010009,2]
[335870153,1724562466056,4440.98,0.00027,120]
[335870163,1724562547081,1276.69480859,0.00010009,2]
[335870165,1724562572415,600.0,0.00010009,2]
[335870166,1724562575491,156.42,7.159e-05,2]
[335870167,1724562622838,1955.1532786,0.00010009,2]
[335870183,1724562637504,-2000.0,0.00010025,2]
[335870184,1724562637561,-1145.0,0.00010025,2]
[335870185,1724562637574,-1420.0,0.00010026,2]
[335870186,1724562637585,-659.2,0.00010026,2]
[335870187,1724562637617,-5806.02685814,0.00010026,2]
[335870188,1724562637629,-1550.41026062,0.00010026,2]
[335870189,1724562637638,-158.80119454,0.00010026,2]
[335870190,1724562637648,-1313.39930667,0.00010026,2]
[335870191,1724562637657,-2206.41970767,0.00010096,2]
[335870192,1724562637728,-9782.56,0.00010096,2]
[335870193,1724562637740,-38011.02029233,0.00010096,2]
[335870194,1724562637750,-300.0,0.00010096,2]
[335870195,1724562637760,-894.20539482,0.00010097,2]
[335870196,1724562637769,-450.0,0.00010097,2]
[335870197,1724562637779,-180.53,0.00010457,2]
[335870198,1724562637788,-330.86892541,0.00010471,2]
[335870199,1724562637797,-155.0,0.00010471,2]
[335870200,1724562637807,-317.13499877,0.00010471,2]
[335870201,1724562637817,-3417.13553765,0.00010471,2]
[335870202,1724562637827,-369.7,0.00010472,2]
[335870203,1724562637837,-150.0,0.00010504,2]
[335870204,1724562637846,-310.0,0.00010505,2]
[335870205,1724562637855,-907.7,0.00010699,2]
[335870206,1724562637865,-155.52409505,0.00010699,2]
[335870207,1724562637875,-4982.2,0.00010699,2]
[335870208,1724562637885,-374.0,0.00010749,2]
[335870209,1724562637895,-151.04341644,0.00010755,2]
[335870210,1724562637905,-150.0,0.00010801,2]
[335870211,1724562637915,-499.99,0.00010816,2]
[335870212,1724562637925,-976.67,0.00010816,2]
[335870213,1724562637935,-227.85337891,0.00010862,2]
[335870214,1724562637944,-294.62713433,0.00010888,2]
[335870215,1724562637953,-826.9771,0.00010889,2]
[335870217,1724562637963,-712.37165,0.0001089,2]
[335870219,1724562637973,-2500.0,0.00010891,2]
[335870221,1724562637982,-306.31409132,0.00010898,2]
[335870223,1724562637992,-3327.031,0.00010899,2]
[335870225,1724562638002,-1154.0,0.00010899,2]
[335870227,1724562638011,-248.529,0.00010899,2]
[335870229,1724562638020,-764.0,0.00010899,2]
[335870231,1724562638030,-171.952,0.00010899,2]
[335870233,1724562638039,-3736.954,0.00010899,2]
[335870235,1724562638048,-1674.0,0.00010899,2]
[335870237,1724562638057,-1077.0,0.00010899,2]
[335870239,1724562638066,-23644.1648,0.000109,2]
[335870241,1724562638075,-6048.896,0.000109,2]
[335870243,1724562638084,-6737.4296,0.000109,2]
[335870245,1724562638094,-1063.06,0.000109,2]
[335870247,1724562638103,-461.48,0.000109,2]
[335870249,1724562638113,-713.51,0.000109,2]
[335870251,1724562638123,-356.95,0.000109,2]
[335870253,1724562638132,-311.15775689,0.000109,2]
[335870255,1724562638142,-150.0,0.00010942,2]
[335870256,1724562638152,-421.55,0.00010951,2]
[335870258,1724562638161,-159.96,0.00010959,2]
[335870260,1724562638171,-155.82,0.00010959,2]
[335870262,1724562638181,-250.0,0.00010959,2]
[335870264,1724562638190,-500.0,0.0001096,2]
[335870266,1724562638200,-800.0,0.0001096,2]
[335870268,1724562638210,-500.0,0.0001096,2]
[335870270,1724562638219,-600.0,0.0001096,2]
[335870272,1724562638229,-150.0,0.00010965,2]
[335870274,1724562638240,-200.0,0.00010973,2]
[335870276,1724562638249,-502.61694303,0.00010973,2]
[335870278,1724562638259,-600.0,0.00010979,2]
[335870280,1724562638269,-527.24751742,0.00010989,2]
[335870282,1724562638279,-653.0,0.0001099,2]
[335870284,1724562638289,-1000.0,0.0001099,2]
[335870285,1724562638299,-1000.0,0.0001099,2]
[335870287,1724562638308,-1000.0,0.0001099,2]
[335870289,1724562638318,-1000.0,0.0001099,2]
[335870291,1724562638327,-1000.0,0.0001099,2]
[335870293,1724562638337,-1000.0,0.0001099,2]
[335870294,1724562638346,-1000.0,0.0001099,3]
[335870295,1724562638356,-1000.0,0.0001099,3]
[335870296,1724562638365,-1000.0,0.0001099,3]
[335870297,1724562638375,-1000.0,0.0001099,3]
[335870298,1724562638384,-1000.0,0.0001099,3]
[335870299,1724562638394,-1000.0,0.0001099,2]
[335870300,1724562638407,-1003.0,0.0001099,2]
[335870301,1724562638416,-1000.0,0.0001099,2]
[335870302,1724562638426,-1000.0,0.0001099,2]
[335870303,1724562638436,-1000.0,0.0001099,3]
[335870304,1724562638445,-1000.0,0.0001099,3]
[335870305,1724562638454,-1147.0,0.0001099,2]
[335870306,1724562638464,-35000.0,0.00010991,2]
[335870307,1724562638473,-525.38382428,0.00010992,2]
[335870308,1724562638483,-577.5233268,0.00010992,2]
[335870309,1724562638491,-511.09672455,0.00010992,2]
[335870310,1724562638501,-546.55170368,0.00010992,2]
[335870311,1724562638511,-500.0,0.00010992,2]
[335870312,1724562638520,-375.61229984,0.00010992,2]
[335870313,1724562638529,-518.95,0.00010992,2]
[335870314,1724562638539,-500.0,0.00010992,2]
[335870315,1724562638548,-500.0,0.00010995,2]
[335870316,1724562638557,-528.92892392,0.00010995,2]
[335870317,1724562638569,-519.9064672,0.00010995,2]
[335870318,1724562638579,-500.0,0.00010995,2]
[335870319,1724562638589,-500.0,0.00010995,2]
[335870320,1724562638598,-500.0,0.00010995,2]
[335870322,1724562638608,-527.85056531,0.00010995,2]
[335870324,1724562638618,-500.0,0.00010995,2]
[335870326,1724562638627,-500.0,0.00010995,2]
[335870328,1724562638637,-500.0,0.00010995,2]
[335870329,1724562638647,-500.0,0.00010995,2]
[335870331,1724562638658,-500.0,0.00010995,2]
[335870333,1724562638667,-500.0,0.00010995,2]
[335870335,1724562638676,-500.0,0.00010995,2]
[335870337,1724562638686,-563.75882641,0.00010995,2]
[335870339,1724562638695,-611.10479998,0.00010995,2]
[335870341,1724562638705,-541.38215962,0.00010995,2]
[335870343,1724562638714,-560.3797483,0.00010995,2]
[335870344,1724562638723,-500.0,0.00010995,2]
[335870346,1724562638733,-529.98075356,0.00010995,2]
[335870348,1724562638743,-526.35499523,0.00010995,2]
[335870350,1724562638752,-500.0,0.00010995,2]
[335870352,1724562638762,-511.35606681,0.00010995,2]
[335870354,1724562638772,-511.55883346,0.00010995,2]
[335870356,1724562638781,-948.78,0.00010995,2]
[335870358,1724562638791,-500.0,0.00010995,2]
[335870359,1724562638800,-500.0,0.00010995,2]
[335870361,1724562638809,-500.0,0.00010995,2]
[335870363,1724562638819,-503.63,0.00010995,2]
[335870365,1724562638828,-500.0,0.00010995,2]
[335870367,1724562638838,-500.0,0.00010995,2]
[335870369,1724562638847,-500.0,0.00010995,2]
[335870370,1724562638858,-500.0,0.00010995,2]
[335870371,1724562638867,-500.0,0.00010995,2]
[335870372,1724562638878,-506.1113821,0.00010995,2]
[335870373,1724562638888,-500.0,0.00010995,2]
[335870374,1724562638898,-513.67953624,0.00010995,2]
[335870375,1724562638908,-7575.23687491,0.00010995,2]
[335870376,1724562638919,-519.59441376,0.00010995,2]
[335870377,1724562638929,-518.83352806,0.00010995,2]
[335870378,1724562638940,-509.46541082,0.00010996,2]
[335870379,1724562638950,-450.2,0.00010996,2]
[335870380,1724562638959,-500.0,0.00010996,2]
[335870381,1724562638969,-547.90944913,0.00010996,2]
[335870382,1724562638978,-627.88039476,0.00010996,2]
[335870383,1724562638988,-505.45641355,0.00010996,2]
[335870384,1724562638997,-525.09712791,0.00010996,2]
[335870385,1724562639007,-500.0,0.00010996,2]
[335870386,1724562639017,-500.0,0.00010996,2]
[335870387,1724562639026,-500.70099129,0.00010996,2]
[335870388,1724562639036,-501.50542619,0.00010996,2]
[335870389,1724562639045,-526.6950853,0.00010996,2]
[335870390,1724562639055,-500.0,0.00010996,2]
[335870391,1724562639064,-523.79603352,0.00010996,2]
[335870392,1724562639078,-510.18856306,0.00010996,2]
[335870393,1724562639088,-513.71745019,0.00010996,2]
[335870394,1724562639097,-508.75414356,0.00010996,2]
[335870395,1724562639107,-508.33701063,0.00010996,2]
[335870396,1724562639117,-515.46025745,0.00010996,2]
[335870397,1724562639129,-502.4867275,0.00010996,2]
[335870398,1724562639138,-500.0,0.00010996,2]
[335870399,1724562639148,-508.72667565,0.00010996,2]
[335870400,1724562639157,-514.39312155,0.00010996,2]
[335870401,1724562639167,-495.77643661,0.00010996,2]
[335870402,1724562639177,-542.41943998,0.00010996,2]
[335870403,1724562639186,-500.0,0.00010996,2]
[335870404,1724562639195,-536.91056489,0.00010996,2]
[335870405,1724562639204,-500.0,0.00010996,2]
[335870406,1724562639214,-533.13340184,0.00010996,2]
[335870407,1724562639223,-514.99483713,0.00010996,2]
[335870408,1724562639233,-553.16087022,0.00010996,2]
[335870409,1724562639242,-531.43832083,0.00010996,2]
[335870410,1724562639252,-535.0212125,0.00010996,2]
[335870411,1724562639261,-528.14845033,0.00010996,2]
[335870412,1724562639270,-500.0,0.00010996,2]
[335870413,1724562639279,-500.0,0.00010996,2]
[335870414,1724562639289,-381.42950306,0.00010996,2]
[335870415,1724562639299,-539.06551903,0.00010996,2]
[335870416,1724562639308,-500.0,0.00010996,2]
[335870417,1724562639317,-500.0,0.00010996,2]
[335870418,1724562639326,-500.0,0.00010996,2]
[335870419,1724562639335,-594.29880069,0.00010996,2]
[335870420,1724562639345,-500.0,0.00010996,2]
[335870421,1724562639354,-500.0,0.00010996,2]
[335870422,1724562639363,-500.0,0.00010996,2]
[335870423,1724562639373,-500.0,0.00010996,2]
[335870424,1724562639383,-581.27396734,0.00010996,2]
[335870425,1724562639392,-500.0,0.00010996,2]
[335870426,1724562639402,-500.0,0.00010996,2]
[335870427,1724562639411,-548.73,0.00010996,2]
[335870428,1724562639420,-500.0,0.00010996,2]